bitfinex-derivatives/quotes_ETHF0:USTF0_20251119
["timestamp","ask_amount","ask_price","bid_price","bid_amount"]
[1763531432233,0.00316736,3001.3,3001.2,4.9746]
[1763531432434,0.00316736,3001.3,3001.2,5.4953512]
[1763531432636,0.5402,3001.4,3001.2,5.4953512]
[1763531432826,0.5402,3001.4,3001.3,1.7668]
[1763531433641,0.54361206,3001.4,3001.3,1.7668]
[1763531433940,0.00341206,3001.4,3001.3,1.7668]
[1763531434145,0.54021,3001.3,3001.2,3.2120512]
[1763531434436,2.28831,3001.3,3001.2,2.5281312]
[1763531435636,0.54021,3001.3,3001.2,2.5281312]
[1763531435841,0.00341206,3001.4,3001.3,1.7668]
[1763531436041,0.00341206,3001.4,3001.2,2.5281312]
[1763531436240,0.00341206,3001.4,3001.3,1.7668]
[1763531437338,3.2078,3002.1,3001.8,1.7668]
[1763531437538,3.2078,3002.6,3002.0,0.54007]
[1763531437734,0.54005,3002.2,3001.8,4.53391]
[1763531437935,3.2078,3002.6,3001.8,5.72428181]
[1763531438135,3.2078,3002.6,3001.8,5.18417181]
[1763531438337,0.00414952,3002.6,3001.8,3.9938]
[1763531438647,0.54002,3002.4,3002.2,0.04560993]
[1763531439038,0.00414952,3002.6,3002.2,3.79343993]
[1763531439235,4.2698,3003.6,3002.3,0.7081]
[1763531439441,4.2698,3003.6,3003.2,3.2078]
[1763531439745,0.53985,3003.3,3003.2,3.2078]
[1763531440334,0.54388284,3003.3,3003.2,3.2078]
[1763531440534,0.54388284,3003.3,3003.2,3.25340993]
[1763531440945,0.00403284,3003.3,3003.2,3.25340993]
[1763531442134,0.53979,3003.7,3003.2,3.25340993]
[1763531442135,3.2078,3004.5,3003.7,0.6303]
[1763531442345,3.2078,3004.5,3004.1,3.2078]
[1763531442538,0.53965,3004.4,3004.3,0.04560993]
[1763531443243,0.0028537,3004.4,3004.3,0.04824015]
[1763531443443,0.53965,3004.5,3004.3,0.04824015]
[1763531443745,0.53965,3004.5,3004.4,0.04560993]
[1763531443940,1.062,3004.4,3004.3,0.00263022]
[1763531444343,0.53965,3004.5,3004.3,3.21043022]
[1763531444543,0.00281477,3004.4,3004.3,3.21043022]
[1763531444939,1.06481477,3004.4,3004.3,0.00263022]
[1763531447850,0.5398,3003.6,3003.5,3.2078]
[1763531448353,0.5398,3003.6,3003.5,3.22400105]
[1763531448948,0.5398,3003.6,3003.5,3.22645842]
[1763531449146,0.53977,3003.8,3003.5,3.22645842]
[1763531449337,0.53979,3003.7,3003.5,3.22645842]
[1763531449539,1.60179,3003.7,3003.5,3.22645842]
[1763531449743,1.60179,3003.7,3003.5,0.01865842]
[1763531450144,1.60179,3003.7,3003.6,0.01620105]
[1763531451448,1.60179,3003.7,3003.5,0.00245737]
[1763531451644,0.53985,3003.3,3003.2,0.00499284]
[1763531452654,0.53985,3003.3,3003.2,0.0079733]
[1763531452851,3.74765,3003.3,3003.2,0.0079733]
[1763531453148,0.53996,3002.7,3002.6,3.2078]
[1763531453343,1.60203,3002.3,3002.2,3.2078]
[1763531453544,0.54003,3002.3,3002.2,3.2078]
[1763531453951,0.54003,3002.3,3002.2,3.21161534]
[1763531454151,0.54,3002.5,3002.2,3.21161534]
[1763531454453,0.54002,3002.4,3002.2,3.21161534]
[1763531455548,1.062,3002.3,3002.2,3.21161534]
[1763531456255,2.8101,3002.3,3002.2,3.21161534]
[1763531457952,2.8101,3002.3,3002.2,5.34e-06]
[1763531458739,2.8101,3002.3,3002.2,3.20780534]
[1763531458740,1.5977,3002.3,3002.2,3.20780534]
[1763531458944,1.5977,3002.3,3002.2,5.34e-06]
[1763531459144,1.51032,3002.4,3002.2,5.34e-06]
[1763531459346,4.71812,3002.4,3002.2,5.34e-06]
[1763531460359,5.93559824,3002.4,3001.4,3.2078]
[1763531460662,0.54014,3001.7,3001.6,1.5082]
[1763531460953,0.54011,3001.9,3001.8,1.5082]
[1763531461162,0.00499284,3002.6,3002.1,1.5082]
[1763531461457,0.00834339,3002.6,3002.3,3.2078]
[1763531461652,0.54832339,3002.6,3002.3,3.2078]
[1763531461849,2.568,3002.4,3002.3,3.2078]
[1763531462053,0.54003,3002.3,3002.1,0.0030424]
[1763531462253,0.54003,3002.3,3002.2,1.5082]
[1763531462452,0.00834339,3002.6,3002.5,1.5082]
[1763531462656,0.00834339,3002.6,3002.5,3.2078]
[1763531463260,0.00834339,3002.6,3002.5,4.716]
[1763531464058,0.00834339,3002.6,3002.5,3.2078]
[1763531464257,0.00834339,3002.6,3002.1,0.89384258]
[1763531464457,0.00834339,3002.6,3002.1,1.5112424]
[1763531464757,0.53999,3002.5,3002.3,1.5082]
[1763531465260,0.00834339,3002.6,3002.2,0.89080018]
[1763531465459,0.54002,3002.4,3002.2,4.09860018]
[1763531465653,1.51032,3002.4,3002.2,4.09860018]
[1763531465961,0.54002,3002.4,3002.2,3.2078]
[1763531466358,0.54002,3002.4,3002.3,1.5082]
[1763531467354,0.54002,3002.4,3002.3,2.39900018]
[1763531469161,3.10802,3002.4,3002.3,0.89080018]
[1763531469357,1.51032,3002.4,3002.2,3.2078]
[1763531469563,0.54002,3002.4,3002.2,3.2078]
[1763531469759,1.51032,3002.4,3002.2,3.2078]
[1763531471062,0.54002,3002.4,3002.3,1.5082]
[1763531472065,1.5977,3002.3,3002.2,3.2078]
[1763531472273,2.13775,3002.2,3002.1,0.0030424]
[1763531474866,0.54005,3002.2,3002.1,0.0030424]
[1763531475063,2.13775,3002.2,3002.1,0.0030424]
[1763531475263,0.00834339,3002.6,3002.2,1.5082]
[1763531475572,0.54002,3002.4,3002.2,1.5082]
[1763531475881,0.54002,3002.4,3002.1,4.10508907]
[1763531475882,0.54005,3002.2,3002.1,4.10508907]
[1763531476177,2.13775,3002.2,3002.1,0.0030424]
[1763531476378,2.13775,3002.2,3002.1,0.89728907]
[1763531476573,0.54005,3002.2,3002.1,2.40548907]
[1763531476973,0.54005,3002.2,3002.1,5.61328907]
[1763531477370,0.54005,3002.2,3002.1,3.2108424]
[1763531477567,0.00834339,3002.6,3002.5,1.5082]
[1763531477777,0.00834339,3002.6,3002.5,5.6112552]
[1763531478266,0.00834339,3002.6,3002.5,4.716]
[1763531478470,3.2078,3003.2,3002.5,3.2078]
[1763531478680,0.53991,3003.0,3002.9,2.70251894]
[1763531478879,3.74768,3003.2,3003.1,1.5082]
[1763531479079,3.74768,3003.2,3003.1,2.40390582]
[1763531479281,3.74768,3003.2,3003.1,1.5082]
[1763531479577,3.75167853,3003.2,3003.1,1.5082]
[1763531479883,3.75167853,3003.2,3003.0,1.19431894]
[1763531479884,3.1079,3003.0,3002.9,1.19431894]
[1763531480183,0.53994,3002.8,3002.7,1.19431894]
[1763531480378,0.53992,3002.9,3002.7,3.29967841]
[1763531480681,0.53992,3002.9,3002.8,1.1957178]
[1763531481077,0.53991,3003.0,3002.8,1.5082]
[1763531481285,1.5977,3002.9,3002.8,1.79147841]
[1763531482076,0.53991,3003.0,3002.9,1.5082]
[1763531482482,0.00399853,3003.2,3002.9,4.716]
[1763531482681,0.00399853,3003.2,3003.1,1.541]
[1763531482885,0.9703,3004.5,3002.9,3.2078]
[1763531482886,0.9703,3004.5,3002.9,7.91975488]
[1763531483082,0.53965,3004.4,3004.1,0.89685241]
[1763531483383,3.2078,3004.6,3004.2,0.89685241]
[1763531483681,0.53962,3004.6,3004.5,1.19580508]
[1763531483886,0.00343375,3004.6,3004.5,1.54482136]
[1763531484493,0.00343375,3004.6,3004.5,3.33852898]
[1763531484783,0.53951,3005.2,3004.8,1.541]
[1763531484988,0.53948,3005.4,3005.3,1.541]
[1763531485596,3.2078,3005.6,3005.1,3.2078]
[1763531485793,0.53948,3005.4,3005.1,3.2078]
[1763531485998,0.5395,3005.3,3005.1,3.2078]
[1763531486302,0.5395,3005.3,3005.2,1.541]
[1763531486595,0.5395,3005.3,3005.1,3.2078]
[1763531487194,0.53958,3004.8,3004.7,4.10170319]
[1763531487387,0.53962,3004.6,3004.5,0.00382136]
[1763531487593,1.92822,3004.6,3004.5,0.00382136]
[1763531487899,0.53962,3004.6,3004.5,0.00382136]
[1763531488098,1.92822,3004.6,3004.5,0.00382136]
[1763531489103,0.53962,3004.6,3004.5,0.00382136]
[1763531489296,1.44939,3004.8,3004.5,0.00382136]
[1763531489599,3.2078,3005.2,3004.7,3.2078]
[1763531490294,0.53961,3004.7,3004.5,0.00382136]
[1763531491400,1.3886,3004.6,3004.5,0.00382136]
[1763531492398,1.3886,3004.3,3004.2,0.00499284]
[1763531492599,0.53988,3003.2,3003.0,4.10170319]
[1763531492900,0.53988,3003.2,3003.0,3.2078]
[1763531493200,0.53996,3002.7,3002.5,3.2078]
[1763531493398,0.54362303,3002.7,3002.6,1.454]
[1763531493902,0.54362303,3002.7,3002.5,3.21067354]
[1763531494101,1.3886,3002.6,3002.5,0.00287354]
[1763531495301,0.53998,3002.6,3002.5,0.00287354]
[1763531495499,0.00366303,3002.7,3002.5,0.00287354]
[1763531495801,3.2078,3003.7,3003.2,1.454]
[1763531496107,0.53984,3003.4,3003.3,1.454]
[1763531496305,0.8887,3003.6,3003.0,3.2078]
[1763531496493,3.2078,3003.7,3003.3,1.454]
[1763531496698,3.75109899,3003.7,3003.3,1.454]
[1763531496898,0.53982,3003.5,3003.3,1.454]
[1763531497206,0.53982,3003.5,3003.4,1.454]
[1763531497395,3.21131899,3003.7,3003.4,1.454]
[1763531497596,0.8887,3003.6,3003.0,4.10170319]
[1763531497911,0.53989,3003.1,3003.0,3.2078]
[1763531498296,3.21131899,3003.7,3003.0,4.6618]
[1763531498499,0.00351899,3003.7,3003.6,1.9938]
[1763531498704,1.899e-05,3003.7,3003.6,1.9938]
[1763531498893,1.899e-05,3003.7,3003.6,8.5548]
[1763531499208,0.53966,3004.4,3004.3,1.454]
[1763531499498,2.0432761,3006.6,3004.8,1.454]
[1763531499499,3.2078,3004.9,3004.8,1.454]
[1763531499806,0.53962,3004.6,3004.5,4.6618]
[1763531500102,0.54310101,3004.6,3004.5,4.66467223]
[1763531500298,0.00348101,3004.6,3004.5,4.66467223]
[1763531502505,0.00348101,3004.6,3004.5,3.21067223]
[1763531502700,1.39208101,3004.6,3004.5,3.21067223]
[1763531504505,0.53983,3003.4,3003.3,0.88959076]
[1763531504712,0.53989,3003.1,3002.9,0.88959076]
[1763531504915,0.53992,3002.9,3002.6,4.09739076]
[1763531505213,3.2078,3003.5,3002.7,1.454]
[1763531505513,0.00499284,3003.4,3002.8,0.00499284]
[1763531505703,0.53991,3003.0,3002.8,0.00499284]
[1763531506007,0.00499284,3003.4,3003.3,1.454]
[1763531506504,0.53989,3003.1,3003.0,1.454]
[1763531507011,0.53992,3002.9,3002.8,0.00499284]
[1763531507508,0.53991,3003.0,3002.8,0.00499284]
[1763531507709,0.53991,3003.0,3002.9,1.454]
[1763531508110,0.00499284,3003.4,3002.9,1.454]
[1763531508314,0.5399,3003.0,3002.9,1.454]
[1763531509104,0.00499284,3003.4,3003.1,1.454]
[1763531509312,0.54483284,3003.4,3003.3,1.454]
[1763531510306,3.2078,3003.9,3003.3,1.42943076]
[1763531510507,0.5398,3003.6,3003.5,2.34359076]
[1763531511610,0.5398,3003.6,3003.4,3.2078]
[1763531512316,0.5398,3003.6,3003.5,1.454]
[1763531513015,3.2078,3003.9,3003.5,1.454]
[1763531513411,3.2078,3003.9,3003.4,3.2078]
[1763531513412,0.53978,3003.7,3003.6,1.454]
[1763531514006,0.53976,3003.8,3003.7,1.454]
[1763531514308,3.2078,3003.9,3003.7,1.454]
[1763531514709,0.00348101,3004.6,3003.6,0.88959076]
[1763531514905,0.00348101,3004.6,3003.9,0.88959076]
[1763531515104,0.53973,3004.0,3003.9,0.88959076]
[1763531516812,0.53973,3004.0,3003.8,4.39970334]
[1763531517016,0.53973,3004.0,3003.8,4.93945334]
[1763531517308,0.48882648,3004.2,3003.9,0.53974]
[1763531517512,0.54310101,3004.6,3004.2,0.53968]
[1763531517708,0.54310101,3004.6,3004.5,3.2078]
[1763531518511,0.54310101,3004.6,3004.5,4.39903242]
[1763531519216,0.00348101,3004.6,3004.5,4.39903242]
[1763531519416,0.53958,3004.8,3004.5,3.2078]
[1763531519615,0.53958,3004.8,3004.6,1.19106837]
[1763531520312,1.38119841,3004.8,3004.6,1.19106837]
[1763531520513,1.38119841,3004.8,3004.7,0.89338596]
[1763531521116,2.81439841,3004.8,3004.6,0.89338596]
[1763531521311,0.53962,3004.6,3004.5,3.2078]
[1763531521712,1.97282,3004.6,3004.5,3.2078]
[1763531522219,1.97282,3004.6,3004.5,2.39648]
[1763531522419,1.4332,3004.0,3003.8,0.89339791]
[1763531522721,0.5398,3003.6,3003.5,4.10119791]
[1763531523229,3.2078,3004.1,3003.5,4.3893]
[1763531523521,0.53978,3003.7,3003.6,0.8936253]
[1763531523911,0.53978,3003.7,3003.5,4.10641814]
[1763531524121,0.53978,3003.7,3003.6,0.8936253]
[1763531524919,0.53978,3003.7,3003.6,2.0751253]
[1763531525222,0.53976,3003.8,3003.7,1.1815]
[1763531525624,1.97296,3003.8,3003.7,0.89470827]
[1763531526221,3.21279284,3004.1,3003.7,0.89470827]
[1763531526420,3.21279284,3004.1,3004.0,1.1815]
[1763531526626,0.00499284,3004.1,3004.0,1.72122]
[1763531526925,0.00371841,3004.8,3004.7,1.1815]
[1763531527324,0.53955,3005.0,3004.7,1.72109]
[1763531527520,3.2078,3005.5,3005.0,1.1815]
[1763531527727,3.2078,3005.5,3005.2,0.89411652]
[1763531527920,3.2078,3005.9,3005.3,0.89411652]
[1763531528129,0.53946,3005.5,3005.3,0.89411652]
[1763531528314,0.53946,3005.5,3005.3,0.89734334]
[1763531528626,2.2711,3005.4,3005.3,0.00322682]
[1763531528815,5.4789,3005.4,3005.3,0.00322682]
[1763531529324,4.0457,3005.4,3005.3,0.00322682]
[1763531531127,5.4789,3005.4,3005.3,0.00322682]
[1763531531429,0.8379,3004.8,3004.0,1.78905579]
[1763531531630,0.8379,3004.2,3003.6,1.78905579]
[1763531531930,0.53983,3003.4,3003.2,1.78905579]
[1763531532119,3.2078,3003.5,3002.6,4.99685579]
[1763531532320,3.2078,3003.5,3002.6,5.54019877]
[1763531532520,0.53986,3003.3,3002.9,0.53992]
[1763531532821,0.53986,3003.3,3002.7,1.79404863]
[1763531532822,0.00393322,3003.3,3002.8,1.78905579]
[1763531533020,0.00393322,3003.3,3003.1,2.32892579]
[1763531533426,3.322e-05,3003.3,3003.2,1.78905579]
[1763531533628,0.53987,3003.2,3003.1,1.78905579]
[1763531533942,0.53987,3003.2,3003.0,3.2078]
[1763531534431,3.322e-05,3003.3,3003.1,0.53989]
[1763531534628,3.322e-05,3003.3,3003.1,0.53987]
[1763531535033,3.322e-05,3003.3,3003.1,1.78655573]
[1763531535332,0.53989,3003.1,3003.0,3.2078]
[1763531535529,3.322e-05,3003.3,3003.0,4.99435573]
[1763531536126,3.322e-05,3003.3,3003.1,2.32642573]
[1763531536330,3.322e-05,3003.3,3003.2,1.78655573]
[1763531536528,3.322e-05,3003.3,3003.1,0.53987]
[1763531536721,0.53987,3003.2,3003.0,3.2078]
[1763531536925,0.53987,3003.2,3003.0,4.99483451]
[1763531537336,3.322e-05,3003.3,3003.0,3.2078]
[1763531537531,3.322e-05,3003.3,3003.2,0.53987]
[1763531537835,3.322e-05,3003.3,3003.1,2.32691451]
[1763531538035,0.00499284,3003.4,3003.1,2.32691451]
[1763531538330,0.53986,3003.3,3003.2,1.1808]
[1763531538534,0.53989,3003.1,3003.0,4.99483451]
[1763531538730,0.53989,3003.1,3003.0,3.2078]
[1763531538927,1.97503012,3003.1,3003.0,3.2078]
[1763531539232,0.53994,3002.8,3002.7,0.00499284]
[1763531539437,0.53994,3002.8,3002.3,1.7820285]
[1763531539438,2.81111,3002.4,3002.3,1.7820285]
[1763531539628,2.81111,3002.4,3001.0,2.39161016]
[1763531539629,0.54023,3001.2,3001.0,2.39161016]
[1763531539826,0.54026,3001.0,3000.8,2.39161016]
[1763531540031,0.54031,3000.8,3000.3,2.93199016]
[1763531540232,3.74813,3000.7,3000.3,0.54038]
[1763531540427,0.54039,3000.4,3000.3,0.00427243]
[1763531540739,0.54034,3000.6,3000.3,0.00427243]
[1763531540940,0.54037,3000.5,3000.3,0.00427243]
[1763531542041,0.54037,3000.5,3000.2,0.00499284]
[1763531542042,0.54039,3000.3,3000.2,0.00499284]
[1763531542337,0.54051,2999.7,2999.1,3.7484]
[1763531542537,3.2078,2999.8,2999.1,3.2078]
[1763531542729,0.54053,2999.6,2999.2,0.54058]
[1763531542929,3.2078,2999.8,2999.3,0.54056]
[1763531543125,3.2078,2999.8,2999.4,0.54053]
[1763531543334,3.2078,2999.8,2999.6,0.54051]
[1763531543534,4.0457,3000.2,2999.9,0.54045]
[1763531543836,0.49707705,3000.3,2999.8,0.54047]
[1763531544038,0.00241615,3000.7,2999.6,3.2078]
[1763531544243,0.54274615,3000.7,3000.2,0.54039]
[1763531544545,0.00241615,3000.7,3000.3,3.74818]
[1763531544737,0.00241615,3000.7,3000.3,3.2078]
[1763531545242,0.00241615,3000.7,3000.0,3.2078]
[1763531545432,0.54274615,3000.7,3000.0,3.2078]
[1763531545745,0.54034,3000.6,3000.1,0.54042]
[1763531545932,0.00241615,3000.7,3000.4,0.54036]
[1763531546240,0.00241615,3000.7,3000.5,0.54034]
[1763531547241,0.00241615,3000.7,3000.3,3.2078]
[1763531547433,0.00241615,3000.7,3000.5,0.54034]
[1763531548344,3.5379,3002.3,3000.3,3.2078]
[1763531548345,4.0457,3001.8,3000.3,3.2078]
[1763531548530,3.2078,3001.4,3000.7,3.2078]
[1763531548730,0.54029,3000.9,3000.7,3.2078]
[1763531548938,1.31739,3000.9,3000.7,3.2078]
[1763531549339,0.78086744,3000.9,3000.7,3.2078]
[1763531549534,0.00376744,3000.9,3000.8,0.5403]
[1763531550335,0.00500124,3001.1,3001.0,0.54026]
[1763531550739,4.0457,3002.3,3001.7,0.54012]
[1763531551036,0.54001,3002.5,3001.9,3.2078]
[1763531551242,3.2078,3002.7,3002.2,0.54004]
[1763531551436,0.7771,3002.3,3002.2,0.00391203]
[1763531551635,0.54016,3001.6,3001.1,3.74804]
[1763531551838,0.54016,3001.6,3001.5,3.2078]
[1763531552133,3.9849,3002.3,3001.2,0.00500124]
[1763531552334,3.2078,3001.9,3001.2,0.00500124]
[1763531552532,3.2078,3001.9,3001.3,0.5402]
[1763531552729,3.2078,3001.9,3001.4,0.54019]
[1763531552937,3.9849,3002.3,3001.5,3.2078]
[1763531553238,3.2078,3002.3,3001.5,3.2078]
[1763531553435,0.54004,3002.3,3002.0,0.54008]
[1763531553635,0.00500124,3002.6,3002.4,0.54001]
[1763531554429,3.2078,3003.4,3002.4,0.54]
[1763531554634,0.5399,3003.1,3002.8,0.53993]
[1763531554837,0.5399,3003.1,3002.9,0.53991]
[1763531555038,3.2078,3003.8,3003.1,0.53988]
[1763531555233,0.53982,3003.5,3003.1,3.74767]
[1763531555434,0.53984,3003.4,3003.1,3.74767]
[1763531555840,0.53986,3003.3,3003.1,3.2078]
[1763531556037,0.00359874,3003.5,3003.0,0.00500124]
[1763531556234,0.00359874,3003.5,3003.2,0.53985]
[1763531556545,0.00359874,3003.5,3003.3,0.53984]
[1763531557048,0.53986,3003.3,3003.1,3.74768]
[1763531557340,0.00359874,3003.5,3003.1,3.74768]
[1763531557845,0.53985,3003.3,3003.1,3.2078]
[1763531558046,0.53985,3003.3,3003.1,3.74768]
[1763531558343,0.53969,3004.2,3003.1,12.04039229]
[1763531558546,3.2078,3004.7,3004.2,0.53968]
[1763531558748,3.2078,3004.7,3003.1,2.83259229]
[1763531558749,0.53958,3004.9,3004.5,3.2078]
[1763531558942,0.53955,3005.0,3004.6,0.53961]
[1763531559246,3.2078,3005.4,3004.5,3.21279259]
[1763531559438,3.74728,3005.4,3004.5,3.21692471]
[1763531559637,0.5395,3005.3,3004.8,0.53957]
[1763531559833,0.53952,3005.2,3004.8,0.53957]
[1763531560048,3.2078,3005.4,3004.5,3.21692471]
[1763531560240,3.2078,3004.6,3004.5,0.00572277]
[1763531560447,0.53978,3003.7,3003.6,3.2078]
[1763531561244,3.2078,3004.1,3003.6,3.2078]
[1763531561741,3.212054,3004.1,3003.6,3.210846]
[1763531562347,0.53977,3003.8,3003.6,3.210846]
[1763531562542,0.53975,3003.9,3003.6,3.210846]
[1763531562743,3.212054,3004.1,3003.7,0.53977]
[1763531562944,3.212054,3004.1,3003.6,3.210846]
[1763531563150,0.53973,3004.0,3003.6,3.750626]
[1763531563647,0.004254,3004.1,3003.6,3.210846]
[1763531563849,0.004254,3004.1,3003.6,0.542836]
[1763531564144,0.53977,3003.8,3003.6,0.003046]
[1763531564748,0.7771,3003.7,3003.6,0.003046]
[1763531565340,1.31688,3003.7,3003.6,0.003046]
[1763531565540,0.53987,3003.2,3003.1,3.2078]
[1763531565740,0.53995,3002.8,3002.7,3.2078]
[1763531565950,0.53993,3002.9,3002.7,3.2078]
[1763531566340,0.53993,3002.9,3002.6,3.2078]
[1763531566750,3.2078,3003.3,3002.6,3.2078]
[1763531566947,3.2078,3003.3,3002.6,3.75550281]
[1763531567147,0.5399,3003.1,3002.6,3.75550281]
[1763531567353,0.53989,3003.1,3002.6,3.75550281]
[1763531567655,0.53989,3003.1,3002.7,0.53995]
[1763531567856,3.2078,3003.3,3002.6,3.21553281]
[1763531568048,0.7771,3003.7,3002.6,3.21553281]
[1763531568049,3.9849,3003.7,3002.7,0.53994]
[1763531568251,0.53993,3002.9,3002.6,3.21553281]
[1763531568550,0.53996,3002.7,3002.6,3.21553281]
[1763531568957,0.53993,3002.9,3002.6,3.21553281]
[1763531569155,0.53993,3002.9,3002.6,3.75550281]
[1763531569656,3.2078,3003.3,3002.6,0.00773281]
[1763531570141,0.53995,3002.8,3002.6,0.00773281]
[1763531570346,3.2078,3003.3,3002.6,0.00773281]
[1763531570542,3.2078,3003.3,3002.6,3.75549281]
[1763531570746,3.2078,3003.3,3002.9,0.53991]
[1763531570946,0.53987,3003.2,3002.9,0.53991]
[1763531571357,0.5398,3003.6,3002.7,1.75777216]
[1763531571656,0.53973,3004.0,3003.1,3.2078]
[1763531571856,3.212054,3004.1,3003.1,3.2078]
[1763531572059,3.751764,3004.1,3003.8,0.53975]
[1763531572551,0.543974,3004.1,3003.8,0.53976]
[1763531572745,1.9316761,3006.5,3003.9,3.2078]
[1763531572746,3.2078,3005.2,3003.9,3.2078]
[1763531572954,0.7771,3003.7,3003.4,1.12269968]
[1763531573152,0.7771,3003.7,3002.6,0.00274022]
[1763531573351,0.53993,3002.9,3002.6,0.00274022]
[1763531573552,0.53995,3002.8,3002.6,0.54271022]
[1763531573748,0.54318741,3002.8,3002.6,0.00274022]
[1763531573951,0.5401,3001.9,3001.8,3.2078]
[1763531574147,0.54025,3001.1,3001.0,3.2078]
[1763531574353,0.54031,3000.8,3000.2,2.85746994]
[1763531574547,3.2078,3000.9,3000.2,1.0859]
[1763531574852,3.2078,3001.7,3000.9,0.7734]
[1763531575047,0.00499259,3001.6,3000.9,0.7734]
[1763531575253,0.00499259,3001.6,3000.9,3.9812]
[1763531575455,0.00499259,3001.6,3001.3,0.54019]
[1763531575852,0.00499259,3001.6,3001.3,3.2078]
[1763531576057,0.00499259,3001.6,3001.4,0.54018]
[1763531576249,0.00499259,3001.6,3001.5,0.54017]
[1763531576445,3.2078,3002.1,3001.7,0.54012]
[1763531576754,3.2078,3002.1,3001.6,0.7734]
[1763531576952,0.5401,3001.9,3001.3,4.97936994]
[1763531577147,3.74787,3002.1,3001.3,4.97936994]
[1763531577455,0.00499259,3002.0,3001.4,1.77156994]
[1763531577650,0.00499259,3002.0,3001.6,0.54014]
[1763531577847,0.00499259,3002.0,3001.7,0.54013]
[1763531578051,0.00499259,3002.0,3001.8,0.54011]
[1763531578248,3.2078,3002.6,3002.4,0.53999]
[1763531578448,3.74779,3002.6,3002.4,0.00403772]
[1763531579758,3.2078,3002.6,3002.4,0.00403772]
[1763531580352,3.2078,3002.6,3002.4,0.54403772]
[1763531580552,0.00323741,3002.8,3002.4,0.00403772]
[1763531580755,3.2078,3002.6,3002.4,0.00403772]
[1763531580960,3.74779,3002.6,3002.4,0.00403772]
[1763531581863,3.2078,3002.6,3001.6,3.2078]
[1763531582064,3.2078,3002.6,3001.6,3.74795]
[1763531582459,0.54011,3001.9,3001.5,1.77156994]
[1763531582651,0.54016,3001.6,3001.5,1.77156994]
[1763531582958,1.36306,3001.6,3001.5,0.00369208]
[1763531584460,0.5403,3000.8,3000.7,0.1]
[1763531584764,6.8229,3001.6,2999.2,2.370356]
[1763531584765,0.54039,3000.3,3000.0,0.54044]
[1763531584962,0.54034,3000.6,2999.9,1.77156994]
[1763531585161,3.2078,3000.9,3000.5,0.54035]
[1763531585461,0.54033,3000.7,3000.5,0.003855]
[1763531585667,3.21210849,3000.9,3000.5,0.003855]
[1763531585864,3.75239849,3000.9,3000.6,0.54033]
[1763531586065,3.21210849,3000.9,3000.5,0.544195]
[1763531586266,0.54031,3000.8,3000.5,0.544195]
[1763531586768,3.21210849,3000.9,3000.5,0.544195]
[1763531586769,0.54032,3000.7,3000.5,0.003855]
[1763531586960,3.75238849,3000.9,3000.5,0.003855]
[1763531587166,0.54033,3000.7,3000.5,0.003855]
[1763531588170,4.03500849,3000.9,3000.5,0.003855]
[1763531588372,0.54033,3000.7,3000.5,0.003855]
[1763531588562,4.03500849,3000.9,3000.5,0.003855]
[1763531588758,0.54032,3000.7,3000.5,0.003855]
[1763531588958,3.21210849,3000.9,3000.7,0.54031]
[1763531589171,3.2078,3001.4,3001.1,0.54023]
[1763531589366,0.8229,3002.3,3000.9,0.7747]
[1763531589367,3.2078,3001.8,3001.6,0.54014]
[1763531589972,3.2078,3001.9,3001.7,0.54013]
[1763531590163,3.21060762,3001.9,3001.7,0.54013]
[1763531590564,3.21060762,3001.9,3001.5,0.54516259]
[1763531590761,3.75071762,3001.9,3001.6,0.54015]
[1763531591063,0.54012,3001.8,3001.6,0.54015]
[1763531591368,3.21060762,3001.9,3001.6,1.43107861]
[1763531592065,0.54012,3001.8,3001.6,0.89092861]
[1763531592669,3.21060762,3001.9,3001.7,0.54013]
[1763531593067,0.00499259,3002.1,3002.0,0.54008]
[1763531593269,3.2078,3003.1,3002.8,0.53993]
[1763531593572,3.2078,3003.1,3002.9,0.53992]
[1763531593767,0.53995,3002.8,3002.6,0.89161142]
[1763531594080,0.54001,3002.4,3002.0,1.78322285]
[1763531594272,0.00431955,3002.4,3002.2,1.43176565]
[1763531594964,0.00431955,3002.4,3002.2,0.89172565]
[1763531595159,0.00431955,3002.4,3002.3,0.89172565]
[1763531595364,0.00431955,3002.4,3002.2,0.54004]
[1763531595570,0.00431955,3002.4,3002.2,3.74784]
[1763531595777,0.00431955,3002.4,3002.2,5.53106285]
[1763531595966,0.00431955,3002.4,3002.2,4.99102285]
[1763531596268,0.00431955,3002.4,3002.3,2.55792285]
[1763531596470,3.74776,3002.7,3002.5,0.53998]
[1763531596670,3.74776,3002.7,3002.6,0.89244576]
[1763531596873,3.74776,3002.7,3002.5,0.89244576]
[1763531597174,3.2078,3002.7,3002.5,1.43243576]
[1763531597368,3.21007177,3002.7,3002.5,0.89244576]
[1763531597568,3.21007177,3002.7,3002.6,0.89244576]
[1763531598569,3.21007177,3002.7,3002.5,0.53998]
[1763531598870,3.2078,3003.1,3003.0,0.5399]
[1763531599066,3.2078,3004.6,3004.0,0.53972]
[1763531599277,3.2078,3004.6,3003.9,0.89198364]
[1763531599470,3.2078,3005.0,3004.3,0.53966]
[1763531599666,3.2078,3005.0,3004.3,0.89697623]
[1763531599877,3.74735,3005.0,3004.4,0.53964]
[1763531600175,0.53962,3004.6,3004.3,1.44006345]
[1763531600376,0.53965,3004.5,3004.3,0.00841981]
[1763531601781,3.2078,3005.0,3004.3,0.00841981]
[1763531602076,3.2078,3004.4,3004.3,0.00841981]
[1763531602279,4.0307,3004.4,3004.3,0.00841981]
[1763531602873,0.5398,3003.6,3003.4,0.89198364]
[1763531603470,3.2078,3003.9,3003.4,0.89198364]
[1763531603770,0.53981,3003.5,3003.4,0.89198364]
[1763531603970,0.53981,3003.5,3003.4,0.00369345]
[1763531603971,0.54247807,3003.5,3003.4,0.00369345]
[1763531604176,0.00266807,3003.5,3003.4,0.00369345]
[1763531609294,3.21046807,3003.5,3003.4,0.00369345]
[1763531609875,0.5399,3003.0,3002.8,3.2078]
[1763531610184,0.53999,3002.5,3002.4,0.89198364]
[1763531610487,0.53999,3002.5,3001.8,5.58642305]